fUSD/lending_fUSD_20240922
["ID","MTS","AMOUNT","RATE_DAILY","PERIOD"]
[338875717,1726977048002,-501.3544706,0.00014986,2]
[338875718,1726977048011,-482.13232858,0.00014986,2]
[338875719,1726977048020,-447.51634155,0.00014986,2]
[338875720,1726977048029,-528.55010425,0.00014986,2]
[338875721,1726977048038,-506.47275255,0.00014986,2]
[338875722,1726977048047,-502.57903951,0.00014986,2]
[338875723,1726977048056,-636.97380259,0.00014986,2]
[338875724,1726977048067,-500.0,0.00014986,2]
[338875725,1726977048076,-500.0,0.00014986,2]
[338875726,1726977048085,-511.60445843,0.00014986,2]
[338875727,1726977048111,-585.42423599,0.00014986,2]
[338875728,1726977048120,-548.27205579,0.00014986,2]
[338875729,1726977048130,-500.0,0.00014986,2]
[338875730,1726977048140,-518.35818695,0.00014986,2]
[338875731,1726977048150,-500.0,0.00014986,2]
[338875732,1726977048159,-533.86896856,0.00014986,2]
[338875733,1726977048168,-585.00228806,0.00014986,2]
[338875734,1726977048178,-561.3337386,0.00014986,2]
[338875735,1726977048187,-500.0,0.00014986,2]
[338875736,1726977048197,-602.88811286,0.00014986,2]
[338875737,1726977048207,-629.95400919,0.00014986,2]
[338875738,1726977048216,-512.30875623,0.00014986,2]
[338875739,1726977048227,-505.66886841,0.00014986,2]
[338875740,1726977048236,-505.52926389,0.00014986,2]
[338875741,1726977048246,-504.55198151,0.00014986,2]
[338875742,1726977048256,-509.75332079,0.00014986,2]
[338875743,1726977048266,-500.0,0.00014986,2]
[338875744,1726977048275,-502.85475192,0.00014986,2]
[338875745,1726977048285,-500.0,0.00014986,2]
[338875746,1726977048294,-499.50872799,0.00014986,2]
[338875747,1726977048303,-581.08868107,0.00014986,2]
[338875748,1726977048312,-500.0,0.00014986,2]
[338875749,1726977048322,-519.43462267,0.00014986,2]
[338875750,1726977048331,-500.0,0.00014986,2]
[338875751,1726977048340,-502.18018952,0.00014986,2]
[338875752,1726977048349,-503.1086319,0.00014986,2]
[338875753,1726977048359,-150.0,0.00014986,2]
[338875754,1726977048368,-500.0,0.00014986,2]
[338875755,1726977048380,-343.0369521,0.00014986,2]
[338875756,1726977048390,-374.59996686,0.00014986,2]
[338875757,1726977048399,-500.0,0.00014986,2]
[338875758,1726977048409,-500.0,0.00014986,2]
[338875759,1726977048418,-500.35418928,0.00014986,3]
[338875760,1726977048428,-208.31365405,0.00014986,2]
[338875761,1726977048437,-246.58357932,0.00014986,2]
[338875762,1726977048446,-171.57410942,0.00014986,2]
[338875763,1726977048458,-256.17612795,0.00014986,2]
[338875764,1726977048468,-244.42361065,0.00014986,2]
[338875765,1726977048479,-151.04247027,0.00014986,2]
[338875766,1726977048488,-284.14672273,0.00014986,2]
[338875767,1726977048498,-168.44385972,0.00014986,2]
[338875768,1726977048507,-195.0867668,0.00014986,2]
[338875769,1726977048517,-150.20135592,0.00014986,2]
[338875770,1726977048526,-152.2575597,0.00014986,2]
[338875771,1726977048535,-150.6633139,0.00014986,2]
[338875772,1726977048545,-150.0,0.00014987,2]
[338875773,1726977048554,-150.0,0.00014988,2]
[338875774,1726977048563,-150.0,0.00014989,2]
[338875775,1726977048572,-150.0,0.0001499,2]
[338875776,1726977048581,-150.0,0.00014991,2]
[338875777,1726977048591,-150.0,0.00014993,2]
[338875778,1726977048600,-1625.2301977,0.00014993,2]
[338875779,1726977048610,-231.8561147,0.00014993,2]
[338875780,1726977048619,-2377.4047243,0.00014993,2]
[338875781,1726977048628,-150.0,0.00014994,2]
[338875782,1726977048637,-150.0,0.00014995,2]
[338875783,1726977048646,-150.0,0.00014996,2]
[338875784,1726977048656,-150.0,0.00014997,2]
[338875785,1726977048665,-150.0,0.00014998,2]
[338875786,1726977048674,-199.43443188,0.00014999,2]
[338875787,1726977048683,-500.0,0.00014999,2]
[338875788,1726977048693,-500.0,0.00014999,2]
[338875789,1726977048702,-500.0,0.00014999,2]
[338875790,1726977048711,-480.1385441,0.00014999,2]
[338875791,1726977048721,-500.0,0.00014999,2]
[338875792,1726977048731,-645.19420266,0.00014999,2]
[338875793,1726977048740,-500.0,0.00014999,2]
[338875794,1726977048749,-649.90953074,0.00014999,2]
[338875795,1726977048759,-12670.88869998,0.00015,2]
[338875796,1726977117032,815.2583,0.00012177,2]
[338875797,1726977146390,671.52,0.00011965,2]
[338875798,1726977184735,1050.0,0.00011,2]
[338875799,1726977603231,160.0,0.00012,2]
[338875800,1726977708168,156.12,0.00010959,2]
[338875801,1726977735107,653.73,0.00011566,2]
[338875865,1726978232130,-542.08956734,0.00013,3]
[338875880,1726978238130,-458.88043266,0.00013,3]
[338875882,1726978238140,-522.42074918,0.00013,2]
[338875883,1726978238150,-4286.0,0.00013,2]
[338875885,1726978238159,-11511.0,0.000132,3]
[338875886,1726978238169,-250.0,0.00013397,2]
[338875887,1726978238179,-155.42,0.00013399,2]
[338875888,1726978238188,-11511.0,0.000134,5]
[338875889,1726978238198,-237.78,0.00013434,2]
[338875890,1726978238207,-250.0,0.00013434,2]
[338875891,1726978238217,-23900.0,0.00013434,2]
[338875892,1726978238226,-360.98,0.00013518,2]
[338875893,1726978238236,-499.99,0.00013518,2]
[338875894,1726978238246,-200.0,0.00013527,2]
[338875895,1726978238256,-1000.0,0.00013539,2]
[338875896,1726978238266,-154.65,0.00013568,2]
[338875897,1726978238275,-154.65,0.00013575,2]
[338875898,1726978238284,-5508.55,0.00013575,2]
[338875899,1726978238294,-154.65,0.00013581,2]
[338875900,1726978238303,-154.65,0.00013587,2]
[338875901,1726978238312,-154.65,0.00013593,2]
[338875902,1726978238321,-154.65,0.00013599,2]
[338875903,1726978238330,-154.65,0.00013605,2]
[338875904,1726978238339,-154.65,0.00013612,2]
[338875905,1726978238349,-154.65,0.00013618,2]
[338875906,1726978238358,-154.65,0.00013624,2]
[338875907,1726978238367,-154.65,0.0001363,2]
[338875908,1726978238376,-154.65,0.00013636,2]
[338875909,1726978238385,-150.62,0.00013699,2]
[338875910,1726978238395,-500.0,0.000137,5]
[338875911,1726978238404,-653.73,0.0001383,2]
[338875912,1726978238413,-6206.57147329,0.00013941,2]
[338875913,1726978238424,-1168.70766274,0.00013941,2]
[338875914,1726978238441,-2624.72086397,0.00013941,2]
[338875915,1726978238450,-448.0,0.00014489,2]
[338875916,1726978238459,-809.0,0.00014489,2]
[338875917,1726978238468,-150.0,0.00014489,2]
[338875918,1726978238478,-5867.0,0.00014489,2]
[338875919,1726978238487,-748.95085919,0.00014489,2]
[338875920,1726978238498,-398.04914081,0.00014489,2]
[338875921,1726978238508,-1081.0,0.00014489,2]
[338875922,1726978238517,-261.0785,0.000146,2]
[338875923,1726978238527,-997.00098262,0.000146,2]
[338875924,1726978238546,-2804.47221738,0.000146,2]
[338875925,1726978238555,-541.23970622,0.000146,2]
[338875926,1726978238564,-541.23970618,0.00014633,2]
[338875927,1726978238574,-1000.0,0.00014663,2]
[338875928,1726978238583,-2500.0,0.00014663,2]
[338875929,1726978238592,-150.0,0.00014664,2]
[338875930,1726978238601,-541.23970618,0.00014667,2]
[338875932,1726978238610,-150.0,0.00014678,2]
[338875934,1726978238619,-150.0,0.0001468,2]
[338875936,1726978238629,-150.0,0.00014684,2]
[338875938,1726978238638,-150.0,0.00014687,2]
[338875940,1726978238647,-150.0,0.00014688,2]
[338875943,1726978238849,-150.0,0.00014692,2]
[338875944,1726978238860,-2535.5939,0.000147,2]
[338875945,1726978238870,-4253.0155,0.000147,2]
[338875946,1726978238879,-18184.19926404,0.000147,2]
[338875950,1726978240126,-10000.0,0.00013941,2]
[338875951,1726978240137,-237.73636191,0.00014694,2]
[338875952,1726978240148,-78154.76163596,0.000147,2]
[338875953,1726978240159,-293.9926,0.000147,2]
[338875954,1726978240169,-1010.0,0.000147,2]
[338875955,1726978240179,-176.40993535,0.000147,2]
[338875956,1726978240188,-541.23970618,0.000147,2]
[338875957,1726978240207,-150.0,0.00014709,2]
[338875958,1726978240216,-150.0,0.00014709,2]
[338875959,1726978240226,-150.0,0.00014711,2]
[338875960,1726978240235,-150.0,0.00014717,2]
[338875961,1726978240244,-150.0,0.0001472,2]
[338875962,1726978240253,-150.0,0.0001472,2]
[338875963,1726978240262,-150.0,0.00014722,2]
[338875964,1726978240271,-150.0,0.00014726,2]
[338875965,1726978240280,-150.0,0.00014729,2]
[338875966,1726978240290,-541.23970618,0.00014733,2]
[338875967,1726978240299,-150.0,0.00014735,2]
[338875968,1726978240308,-150.0,0.00014738,2]
[338875969,1726978240317,-150.0,0.00014741,2]
[338875970,1726978240325,-150.0,0.00014747,2]
[338875971,1726978240335,-150.0,0.00014749,2]
[338875973,1726978240344,-150.0,0.0001475,2]
[338875975,1726978240353,-150.0,0.00014751,2]
[338875977,1726978240362,-150.0,0.00014761,2]
[338875979,1726978240371,-150.0,0.00014763,2]
[338875981,1726978240381,-150.0,0.00014766,2]
[338875983,1726978240391,-541.23970618,0.00014767,2]
[338875985,1726978240400,-296.14851329,0.00014769,2]
[338875987,1726978240410,-150.0,0.0001477,2]
[338875989,1726978240419,-150.0,0.00014771,2]
[338875991,1726978240429,-150.0,0.00014771,2]
[338875993,1726978240440,-150.0,0.00014779,2]
[338875995,1726978240454,-150.0,0.00014788,2]
[338875996,1726978240464,-150.0,0.00014789,2]
[338875997,1726978240473,-150.0,0.0001479,2]
[338875998,1726978240482,-150.0,0.00014792,2]
[338875999,1726978240491,-150.0,0.00014793,2]
[338876000,1726978240501,-150.0,0.00014797,2]
[338876001,1726978240511,-3500.0,0.000148,2]
[338876002,1726978240520,-6920.75,0.000148,2]
[338876003,1726978240529,-33053.78018581,0.000148,2]
[338876004,1726978240658,-2201.24944767,0.000148,2]
[338876005,1726978240672,-2895.92413132,0.000148,2]
[338876007,1726978243310,-7129.94850261,0.00013941,2]
[338876008,1726978243320,-237.16645007,0.000145,2]
[338876009,1726978243363,-1763.77754993,0.000145,2]
[338876010,1726978243373,-283.40599363,0.000148,2]
[338876011,1726978243384,-50152.56404157,0.000148,2]
[338876012,1726978243393,-258873.6100908,0.000148,2]
[338876014,1726978246216,-177300.18085463,0.000148,2]
[338876015,1726978246227,-43752.34939161,0.000148,2]
[338876016,1726978246239,-9082.82517496,0.000148,2]
[338876017,1726978260571,153.61,0.00010959,2]
[338876021,1726978341845,603.62,0.0001193,2]
[338876030,1726978798254,229.5,0.00010959,2]
[338876031,1726978896783,3000.0,0.00021,60]
[338876032,1726978957294,589.3,0.00011645,2]
[338876033,1726978987107,1050.0,0.00011,2]
[338876037,1726979177133,175.52,0.00010784,2]
[338876038,1726979189243,385.9,0.00010959,2]
[338876039,1726979230663,877.06,0.00010959,2]
[338876105,1726979357279,173.15,0.00010959,2]
[338876129,1726979432182,-250.0,0.0001294,2]
[338876130,1726979432191,-1.40209908,0.0001299,2]
[338876132,1726979432203,-860.46229412,0.0001299,2]
[338876134,1726979432213,-157.1,0.0001299,2]
[338876136,1726979432222,-561.22193258,0.0001299,2]
[338876137,1726979432232,-300.0,0.00012998,2]
[338876138,1726979432243,-10687.0,0.00012999,2]
[338876139,1726979432252,-150.0,0.00012999,2]
[338876140,1726979432261,-275850.88901179,0.00013,2]
[338876141,1726979432276,-2131.03440012,0.00013,2]
[338876142,1726979432287,-18303.85464374,0.00013,2]
[338876143,1726979432299,-2999.0,0.00013,2]
[338876144,1726979432310,-13024.37793672,0.00013,2]
[338876145,1726979432321,-85473.5695717,0.00013,2]
[338876146,1726979432339,-28443.27290558,0.00013,2]
[338876147,1726979432350,-13698.38536391,0.00013,2]
[338876148,1726979432361,-684.71908266,0.00013,2]
[338876149,1726979432372,-2944.07580152,0.00013,2]
[338876150,1726979432383,-669.94125223,0.00013,2]
[338876151,1726979432395,-13790.59481179,0.00013,2]
[338876152,1726979432406,-1157.16,0.00013,2]
[338876153,1726979432417,-5149.76122802,0.00013,2]
[338876154,1726979432427,-387.02289021,0.00013,2]
[338876155,1726979432438,-1000.5000036,0.00013,2]
[338876156,1726979432449,-393.9067626,0.00013,2]
[338876157,1726979432460,-316.04555084,0.00013,2]
[338876158,1726979432471,-132505.21823792,0.00013,2]
[338876159,1726979432489,-57728.18810391,0.00013,2]
[338876160,1726979432500,-315.29707946,0.00013,2]
[338876161,1726979432511,-913.26386626,0.00013,2]
[338876162,1726979432521,-17217.00000065,0.00013,2]
[338876163,1726979432533,-16123.53644986,0.00013,2]
[338876164,1726979432542,-186.14,0.00013003,2]
[338876165,1726979432551,-366.89,0.00013005,2]
[338876166,1726979432560,-358.26,0.00013008,2]
[338876167,1726979432569,-250.0,0.00013024,2]
[338876168,1726979432578,-186.14,0.00013025,2]
[338876169,1726979432588,-186.14,0.00013047,2]
[338876170,1726979432597,-341.95,0.00013049,2]
[338876171,1726979432606,-186.14,0.00013068,2]
[338876173,1726979432615,-158.93,0.0001311,2]
[338876176,1726979432625,-224.04,0.00013323,2]
[338876178,1726979432634,-4750.88603001,0.00013449,2]
[338876181,1726979432645,-270.26587227,0.00013449,2]
[338876183,1726979432656,-358.81969175,0.00013449,2]
[338876185,1726979432664,-105.71429536,0.00013471,2]
[338876186,1726979432675,-80.03112043,0.00013471,2]
[338876187,1726979432685,-1000.0,0.00013491,2]
[338876188,1726979432694,-145.69454471,0.0001355,2]
[338876189,1726979432705,-998.55611827,0.0001355,2]
[338876190,1726979432715,-5931.63004855,0.0001355,2]
[338876191,1726979432724,-1079.61853232,0.0001355,2]
[338876192,1726979432735,-892.96869572,0.0001355,2]
[338876193,1726979432746,-707.07731665,0.0001355,2]
[338876194,1726979432757,-629.99914214,0.0001355,2]
[338876195,1726979432768,-371.6925449,0.0001355,2]
[338876199,1726979438312,-1380.52376827,0.0001355,2]
[338876200,1726979438322,-182.65,0.0001355,2]
[338876201,1726979438332,-23900.0,0.0001355,2]
[338876202,1726979438341,-250.0,0.00013571,2]
[338876204,1726979438351,-286.16,0.00013585,2]
[338876206,1726979438360,-5379.971594,0.0001361,2]
[338876207,1726979438370,-499.99,0.00013617,2]
[338876208,1726979438380,-500.0,0.000137,5]
[338876209,1726979438390,-5379.971594,0.00013771,2]
[338876210,1726979438401,-589.3,0.00013909,2]
[338876211,1726979438411,-5379.971594,0.00013933,2]
[338876212,1726979438420,-8388.75002856,0.00013941,2]
[338876213,1726979438430,-167.2,0.00013995,2]
[338876214,1726979438439,-5379.971594,0.00014094,2]
[338876215,1726979438448,-420.0,0.00014255,2]
[338876216,1726979438457,-5379.971594,0.00014255,2]
[338876217,1726979438467,-167.27,0.00014258,2]
[338876218,1726979438476,-5379.971594,0.00014416,2]
[338876219,1726979438487,-5379.971594,0.00014578,2]
[338876220,1726979438496,-788.3727,0.000146,2]
[338876221,1726979438505,-366.89,0.00014631,2]
[338876222,1726979438515,-150.23386,0.00014652,2]
[338876223,1726979438524,-6276.66917415,0.0001466,2]
[338876224,1726979438533,-150.0,0.0001469,2]
[338876225,1726979438543,-500.0,0.00014699,2]
[338876226,1726979438552,-500.0,0.00014699,2]
[338876227,1726979438561,-500.0,0.00014699,2]
[338876228,1726979438570,-635.09373001,0.00014699,2]
[338876229,1726979438579,-296136.29121155,0.00014699,2]
[338876230,1726979438588,-381.0954827,0.000147,2]
[338876231,1726979438597,-176.44917611,0.000147,2]
[338876232,1726979438606,-1924.6496,0.000147,2]
[338876233,1726979438616,-2158.6726,0.000147,2]
[338876234,1726979438626,-286.1498,0.000147,2]
[338876235,1726979438635,-1000.0,0.000147,2]
[338876236,1726979438644,-252.3535,0.000147,2]
[338876237,1726979438654,-8203.93,0.000147,2]
[338876238,1726979438663,-9991.8232,0.000147,2]
[338876239,1726979438674,-150.0,0.00014701,2]
[338876240,1726979438683,-150.0,0.00014702,2]
[338876241,1726979438692,-150.0,0.00014707,2]
[338876242,1726979438701,-150.0,0.0001471,2]
[338876243,1726979438710,-150.0,0.00014717,2]
[338876244,1726979438720,-150.0,0.0001472,2]
[338876245,1726979438729,-150.0,0.0001472,2]
[338876246,1726979438739,-150.0,0.00014726,2]
[338876247,1726979438748,-150.0,0.00014732,2]
[338876248,1726979438758,-5379.971594,0.00014739,2]
[338876249,1726979438768,-150.0,0.0001474,2]
[338876250,1726979438777,-150.0,0.0001475,2]
[338876251,1726979438787,-150.0,0.00014755,2]
[338876252,1726979438796,-150.0,0.00014756,2]
[338876253,1726979438806,-150.0,0.00014757,2]
[338876254,1726979438815,-150.0,0.0001476,2]
[338876255,1726979438825,-150.0,0.00014762,2]
[338876256,1726979438834,-150.0,0.00014762,2]
[338876257,1726979438844,-150.0,0.00014764,2]
[338876258,1726979438853,-150.0,0.00014764,2]
[338876259,1726979438862,-500.0,0.00014768,2]
[338876260,1726979438872,-1903.0,0.00014769,2]
[338876261,1726979438882,-553.0,0.00014769,2]
[338876262,1726979438892,-1914.0,0.00014769,2]
[338876263,1726979438901,-806.0,0.00014769,2]
[338876264,1726979438911,-248.0,0.00014769,2]
[338876265,1726979438920,-3346.0,0.00014769,2]
[338876266,1726979438929,-1080.0,0.00014769,2]
[338876267,1726979438938,-1549.0,0.00014769,2]
[338876268,1726979438948,-150.0,0.00014769,2]
[338876269,1726979438958,-5867.0,0.00014769,2]
[338876270,1726979438967,-1262.0,0.00014769,2]
[338876271,1726979438978,-448.0,0.00014769,2]
[338876272,1726979438988,-625.0,0.00014769,2]
[338876273,1726979438997,-1147.0,0.00014769,2]
[338876274,1726979439006,-150.0,0.00014769,2]
[338876275,1726979439016,-3461.72533096,0.0001477,2]
[338876277,1726979439026,-500.0,0.00014773,2]
[338876278,1726979439035,-500.0,0.00014773,2]
[338876279,1726979439044,-503.4255307,0.00014773,2]
[338876280,1726979439054,-502.71033855,0.00014773,2]
[338876281,1726979439063,-150.0,0.00014774,2]
[338876282,1726979439073,-150.0,0.00014776,2]
[338876283,1726979439082,-500.0,0.00014777,2]
[338876284,1726979439092,-150.0,0.00014778,2]
[338876285,1726979439101,-150.0,0.00014778,2]
[338876286,1726979439111,-150.0,0.00014781,2]
[338876287,1726979439120,-500.0,0.00014786,2]
[338876288,1726979439130,-1500.0,0.00014786,2]
[338876289,1726979439139,-150.0,0.00014788,2]
[338876290,1726979439148,-150.0,0.00014791,2]
[338876291,1726979439157,-150.0,0.00014794,2]
[338876292,1726979439166,-500.0,0.00014794,2]
[338876293,1726979439175,-150.0,0.00014797,2]
[338876294,1726979439183,-150.0,0.00014798,2]
[338876295,1726979439193,-150.0,0.00014799,2]
[338876296,1726979439202,-143081.1110012,0.000148,2]
[338876297,1726979439215,-16801.38985506,0.000148,2]
[338876298,1726979439226,-518.62206885,0.000148,2]
[338876299,1726979439238,-1114.47748706,0.000148,2]
[338876300,1726979439255,-1849.01762945,0.000148,2]
[338876301,1726979439266,-815.0,0.000148,2]
[338876302,1726979439278,-7039.50065931,0.000148,2]
[338876303,1726979439289,-1275.15327242,0.000148,2]
[338876304,1726979439300,-1404.2,0.000148,2]
[338876305,1726979439311,-11376.91597745,0.000148,2]
[338876306,1726979439322,-7440.2661436,0.000148,2]
[338876307,1726979439332,-313.999999,0.000148,2]
[338876308,1726979439343,-4888.27761967,0.000148,2]
[338876309,1726979439354,-2730.40354718,0.000148,2]
[338876310,1726979439364,-2692.589386,0.000148,2]
[338876311,1726979439375,-300.45999998,0.000148,2]
[338876312,1726979439393,-300.0,0.000148,2]
[338876314,1726979440222,-639.92034794,0.000148,2]
[338876315,1726979440234,-27790.47092542,0.000148,2]
[338876316,1726979440248,-4853.09999989,0.000148,2]
[338876317,1726979440259,-4925.52846422,0.000148,2]
[338876318,1726979440271,-6315.3454475,0.000148,2]
[338876319,1726979440285,-932.0,0.00014769,2]
[338876320,1726979440295,-16782.20317914,0.000148,2]
[338876321,1726979440338,-126481.30690273,0.000148,2]
[338876322,1726979440349,-56638.74678757,0.000148,2]
[338876323,1726979440396,-339.39239905,0.00012903,2]
[338876324,1726979440406,-924.89260095,0.000148,2]
[338876325,1726979440418,-2156.77511149,0.000148,2]
[338876326,1726979440453,-639.99,0.000148,2]
[338876327,1726979440512,-3274.40791948,0.000148,2]
[338876328,1726979440523,-5966.59176036,0.000148,2]
[338876329,1726979440533,-8210.80319713,0.000148,2]
[338876334,1726979443252,-266.362806,0.000148,2]
[338876335,1726979443264,-13241.12972898,0.000148,2]
[338876336,1726979443365,-725.4026,0.000148,2]
[338876337,1726979443378,-24896.6478099,0.000148,2]
[338876338,1726979443422,-977.39069926,0.000148,2]
[338876339,1726979443433,-927.77,0.000148,2]
[338876340,1726979443445,-13907.20847645,0.000148,2]
[338876341,1726979443531,-2456.37844139,0.000148,2]
[338876342,1726979443543,-3177.3396,0.000148,2]
[338876350,1726979446176,-339.39239905,0.00013902,2]
[338876351,1726979446186,-0.73180177,0.00014769,2]
[338876352,1726979446197,-808.26819823,0.00014769,2]
[338876353,1726979446206,-1794.89578923,0.000148,2]
[338876354,1726979446217,-2121.22391962,0.000148,2]
[338876355,1726979446340,-6084.5,0.000148,2]
[338876356,1726979446396,-18101.6106962,0.000148,2]
[338876357,1726979446409,-15015.76540038,0.000148,2]
[338876358,1726979446454,-28693.5093394,0.000148,2]
[338876359,1726979446465,-404.48230813,0.000148,2]
[338876360,1726979446477,-909.84455342,0.000148,2]
[338876361,1726979446489,-6488.44889042,0.000148,2]
[338876362,1726979446500,-5337.63867122,0.000148,2]
[338876363,1726979446512,-11861.77782766,0.000148,2]
[338876364,1726979446523,-12918.06001583,0.000148,2]
[338876365,1726979446534,-1861.594756,0.000148,2]
[338876366,1726979446545,-38183.21274438,0.000148,2]
[338876367,1726979446557,-1455.39500522,0.000148,2]
[338876371,1726979592097,545.94,0.00011785,2]
[338876372,1726979887592,158.58,0.00010959,2]
[338876373,1726980215645,535.5,0.00011569,2]
[338876387,1726980505583,156.55,0.00010959,2]
[338876394,1726980631352,-250.0,0.00013365,2]
[338876395,1726980631362,-300.0,0.00013372,2]
[338876396,1726980631372,-23900.0,0.00013373,2]
[338876397,1726980631382,-1000.0,0.00013389,2]
[338876398,1726980631391,-170.97,0.00013389,2]
[338876399,1726980631401,-828.65,0.00013391,2]
[338876400,1726980631412,-300.39,0.00013396,2]
[338876401,1726980631422,-250.0,0.00013399,2]
[338876402,1726980631431,-228.92,0.00013421,2]
[338876403,1726980631441,-169.22,0.00013479,2]
[338876404,1726980631450,-150.0,0.00013671,2]
[338876405,1726980631460,-535.5,0.00013833,2]
[338876406,1726980631470,-150.99,0.00013833,2]
[338876407,1726980631480,-499.99,0.00013833,2]
[338876408,1726980631489,-169.88,0.00013891,2]
[338876409,1726980631499,-300.0,0.000139,5]
[338876410,1726980631509,-163.51,0.00013902,2]
[338876411,1726980631519,-600.0,0.00014,5]
[338876412,1726980631528,-900.0,0.000141,5]
[338876413,1726980631538,-1200.0,0.000142,5]
[338876414,1726980631548,-1600.0,0.000143,5]
[338876415,1726980631558,-150.0,0.00014363,2]
[338876416,1726980631567,-9181.97356332,0.00014364,2]
[338876417,1726980631580,-4373.51381368,0.00014364,2]
[338876418,1726980631590,-182.091337,0.00014364,2]
[338876419,1726980631599,-14654.114069,0.00014364,2]
[338876420,1726980631609,-663.529206,0.00014364,2]
[338876421,1726980631619,-389.044455,0.00014364,2]
[338876422,1726980631628,-300.0,0.000144,5]
[338876423,1726980631638,-323.99304816,0.00014444,2]
[338876424,1726980631650,-2127.14145184,0.00014444,2]
[338876425,1726980631660,-150.0,0.00014493,2]
[338876426,1726980631669,-150.0,0.00014493,2]
[338876427,1726980631679,-150.0,0.00014493,2]
[338876428,1726980631689,-300.0,0.000145,5]
[338876429,1726980631699,-3525.85854816,0.00014544,2]
[338876430,1726980631843,-5853.03008476,0.00014544,2]
[338876431,1726980631865,-1283.39985363,0.00014544,2]
[338876432,1726980631876,-716.18874666,0.00014544,2]
[338876433,1726980631888,-2177.01014379,0.00014544,2]
[338876434,1726980631899,-187.18853287,0.00014544,2]
[338876435,1726980631910,-476.34067313,0.00014544,2]
[338876436,1726980631921,-2216.95237366,0.00014544,2]
[338876437,1726980631937,-1373.45409128,0.00014544,2]
[338876438,1726980631949,-264.46157143,0.00014544,2]
[338876441,1726980637498,-10799.24603263,0.00014544,2]
[338876442,1726980637508,-389.044455,0.00014544,2]
[338876443,1726980637518,-1924.6496,0.00014589,2]
[338876444,1726980637527,-2063.9664,0.00014589,2]
[338876445,1726980637536,-5367.3529,0.00014589,2]
[338876446,1726980637546,-1584.7305,0.00014589,2]
[338876447,1726980637555,-8203.93,0.000146,2]
[338876448,1726980637564,-162.4233,0.000146,2]
[338876449,1726980637574,-2450.3223,0.000146,2]
[338876450,1726980637593,-1824.0,0.000146,2]
[338876451,1726980637602,-165.75701899,0.000146,2]
[338876452,1726980637611,-339.39239905,0.000146,2]
[338876453,1726980637620,-4103.30015248,0.000146,2]
[338876454,1726980637630,-300.0,0.000146,5]
[338876455,1726980637639,-4103.30015242,0.00014633,2]
[338876456,1726980637649,-165.75701898,0.0001465,2]
[338876457,1726980637659,-150.68541,0.00014652,2]
[338876458,1726980637668,-420.0,0.00014659,2]
[338876459,1726980637677,-4103.30015242,0.00014667,2]
[338876460,1726980637686,-500.0,0.00014673,2]
[338876461,1726980637696,-502.71033855,0.00014673,2]
[338876462,1726980637706,-500.0,0.00014673,2]
[338876463,1726980637715,-500.0,0.00014673,2]
[338876464,1726980637724,-62122.2189,0.00014689,2]
[338876465,1726980637734,-2158.6726,0.000147,2]
[338876466,1726980637743,-1000.0,0.000147,2]
[338876467,1726980637752,-286.1498,0.000147,2]
[338876468,1726980637762,-862.7014,0.000147,2]
[338876469,1726980637771,-252.3535,0.000147,2]
[338876470,1726980637781,-12250.3671,0.000147,2]
[338876471,1726980637790,-77795.7357237,0.000147,2]
[338876472,1726980637805,-4875.07040007,0.000147,2]
[338876473,1726980637816,-559.12249875,0.000147,2]
[338876474,1726980637829,-1003.0236,0.000147,2]